Workbook

Sheet Início
A2: Comece a trabalhar com fórmulas
A3: Em poucas etapas você estará pronto para criar fórmulas e funções no Excel, o aplicativo de planilhas mais avançado do mundo.
A4: Volte ao início pressionando Ctrl+Home. Para iniciar o tour, pressione Ctrl+Page Down.

Sheet Noções básicas
A1: Noções básicas: fazer cálculos no Excel
A2: Você pode somar, subtrair, multiplicar e dividir no Excel sem usar as funções internas. Basta usar alguns operadores básicos: +, -, * e /. Todas as fórmulas começam com um sinal de igual (=). | C2: Números a usar: | E2: Operação: | F2: Fórmulas: | G2: Respostas:
A3: Para somar, selecione a célula F3, digite =C3 + C4 e pressione Enter. | C3: 1 | E3: Adição (+) | G3: =C3+C4 -> 3
A4: Para subtrair, selecione a célula F4, digite =C3-C4 e pressione Enter. | C4: 2 | E4: Subtração (-) | G4: =C3-C4 -> -1
A5: Para multiplicar, selecione a célula F5, digite =C3*C4 e pressione Enter. | E5: Multiplicação (*) | G5: =C3*C4 -> 2
A6: Para dividir, selecione a célula F6, digite =C3/C4 e pressione Enter. | E6: Divisão (/) | G6: =C3/C4 -> 0.5
A7: Veja só: altere os números nas células C3 e C4 e veja os resultados da fórmula serem alterados automaticamente. | E7: Potência (^) | G7: =C3^C4 -> 1
A8: CRÉDITO ADICIONAL: Para elevar um número a determinada potência, use o símbolo de circunflexo (^), como =A1^A2. Para inseri-lo, pressione Shift+~, ao lado da cedilha. Na célula F7, digite =C3^C4.
A9: Veja mais detalhes abaixo
A10: Próxima etapa
A11: Saiba mais sobre fórmulas, células e intervalos
A12: O Excel é composto de células individuais que estão agrupadas em linhas e colunas. Linhas são identificadas por números e colunas, por letras. Há mais de 1 milhão de linhas e mais de 16.000 colunas, e você pode colocar fórmulas em qualquer uma delas.
A13: As fórmulas podem conter referências a células, a intervalos de células, operadores e constantes. Todos os seguintes são exemplos de fórmulas: =A1+B1 =10+20 =SOMA(A1:A10)
A14: Você verá que usamos a função SOMA em nosso terceiro exemplo acima. Uma função é um comando previamente criado que pega um valor ou valores, faz determinado cálculo e retorna um resultado. Por exemplo, a função SOMA pega as referências ou intervalos de células especificados, e soma tudo. Neste exemplo, ela pega as células de A1 a A10 e soma. O Excel tem mais de 400 funções, que você pode explorar na guia Fórmulas.
A15: Fórmulas com funções começam com um sinal de igual, depois o nome da função seguido de seus argumentos (os valores que uma função usa para calcular) entre parênteses.
A16: Confirme uma fórmula pressionando Enter. Quando fizer isso, a fórmula será calculada e o resultado será exibido na célula. Para ver a fórmula em si, você pode olhar na barra de fórmulas, logo abaixo da Faixa de Opções, ou pressionar F2 para entrar no modo de edição, e ver a fórmula na célula. Pressione Enter novamente para finalizar a fórmula e calcular o resultado.
A17: Algumas explicações sobre fórmulas
A18: "=10+20" é uma fórmula em que 10 e 20 são constantes, e o sinal + é o operador.
A19: =SOMA(A1:A10) é uma fórmula, em que SOMA é o nome da função, os parênteses de abertura e fechamento contêm os argumentos da fórmula e A1:A10 é o intervalo de células para a função.
A20: =SOMA(A1:A10;C1:C10) é uma fórmula, em que SOMA é o nome da função, os parênteses de abertura e fechamento contêm os argumentos da fórmula e A1:A10;C1:C10 são os intervalos de células para a função separados por uma vírgula.
A21: É BOM SABER: Constantes são valores inseridos em células ou fórmulas. Apesar de "=10+20" oferecer o mesmo cálculo que "=A1+B1", constantes não recomendadas. Por quê? Porque você não consegue ver facilmente a constante sem selecionar a célula e procurar o valor. E isso pode ser difícil de alterar posteriormente. É muito mais fácil colocar constantes em células, onde elas podem ser facilmente ajustadas, e fazer referência a elas em suas fórmulas. Por exemplo: Selecione a célula amarela abaixo que contém o 12. Você verá que usamos a função SOMA com um intervalo de células. Nós não digitamos "4" ou "8" diretamente na fórmula.
A22: Anterior
A23: Avançar
A24: Mais informações na Web
A25: Use o Excel como uma calculadora
A26: Visão geral de fórmulas no Excel
A27: Funções do Excel (por categoria)
A28: Funções do Excel (em ordem alfabética)
A29: Treinamento grátis sobre o Excel online
J40: Valores
J41: 4
J42: 8
J43: =SUM(J41:J42) -> 12

Sheet Introdução às funções
A1: Introdução às funções
A2: Funções oferecem a capacidade de fazer uma variedade de coisas, como realizar operações matemáticas, pesquisar valores ou até mesmo calcular datas e horas. Vamos tentar algumas maneiras de somar valores com a função SOMA. | C2: Fruta | D2: Valor | F2: Carne | G2: Valor
A3: Na coluna Valor para Fruta (célula D7), digite =SOMA(D3:D6), ou digite =SOMA( e selecione o intervalo com o mouse, depois pressione Enter. Isso somará os valores nas células D3, D4, D5 e D6. Sua resposta deve ser 170. | C3: Maçãs | D3: 50 | F3: Vaca | G3: 50
A4: Agora vamos tentar a AutoSoma. Selecione a célula na coluna para Carne (célula G7), acesse Fórmulas > AutoSoma > selecione SOMA. Você verá o Excel inserir automaticamente a fórmula. Pressione Enter para confirmá-la. O recurso AutoSoma tem todas as funções mais comuns. | C4: Laranjas | D4: 20 | F4: Frango | G4: 30
A5: Eis um atalho de teclado útil. Selecione a célula D15 e pressione Alt = e Enter. Isso insere a função SOMA automaticamente. | C5: Bananas | D5: 60 | F5: Porco | G5: 10
A6: Veja mais detalhes abaixo | C6: Limões | D6: 40 | F6: Peixe | G6: 50
A7: CRÉDITO ADICIONAL Experimente a função CONT.NÚM usando qualquer um dos métodos que você já tentou. A função CONT.NÚM conta o número de células em um intervalo que contém números. | C7: SOMA > | D7: =SUM(D3:D6) -> 170 | F7: SOMA >
A8: Próxima etapa
A9: Mais sobre funções | C9: Item | D9: Montante | F9: Item | G9: Valor
A10: Vá para a guia Fórmulas e navegue pela Biblioteca de Funções, em que as funções são listadas por categoria, como Texto, Data e Hora, etc. Inserir Função possibilita pesquisar as funções por nome e iniciar um Assistente de função que pode ajudá-lo a criar sua fórmula. Quando você começa a digitar um nome de função depois de pressionar =, o Excel inicia o Intellisense, que lista todas as funções que começam com as letras que você está digitando. Quando você encontrar a fórmula desejada, pressione Tab e o Excel automaticamente conclui o nome da função e insere o parêntese de abertura. Ele também exibe os argumentos opcionais e obrigatórios. Agora vamos observar a anatomia de algumas funções. A função SOMA é estruturada assim: | C10: Pão | D10: 50 | F10: Pão | G10: 50
A11: Se a função SOMA pudesse falar, diria: retorne a soma de todos os valores nas células D35 a D38 e de todos os valores na coluna H. SOMA é o nome da função D35:D38 é o primeiro argumento de intervalo, que quase sempre é necessário, e H:H é o segundo argumento de intervalo; os argumentos estão separados por uma vírgula. Agora, vamos tentar uma fórmula que não requer argumentos. | C11: Roscas | D11: 100 | F11: Roscas | G11: 100
A12: A função HOJE retorna a data de hoje. Ela será atualizada automaticamente quando o Excel recalcular. | C12: Biscoitos | D12: 40 | F12: Biscoitos | G12: 40
A13: VEJA ISTO Selecione essas células. Em seguida, no canto inferior direito da janela do Excel, procure por SOMA: 170 na barra inferior. Isso é chamado de barra de status e é apenas outra maneira de localizar rapidamente um total e outros detalhes sobre uma célula ou intervalo selecionados. | C13: Bolos | D13: 50 | F13: Bolos | G13: 50
A14: DETALHE IMPORTANTE Clique duas vezes nessa célula. Você observará 100 próximo ao fim. Embora seja possível colocar números em uma fórmula como esta, não é recomendável, a menos que seja absolutamente necessário. Isso é conhecido como uma constante, e é fácil esquecer que está presente. É recomendável fazer referência a outra célula ao invés disso, como a célula F51. Assim, ela é vista facilmente e não é ocultada em uma fórmula. | C14: Tortas | D14: 20 | F14: Tortas | G14: 20
A15: Mais informações na Web | C15: SOMA > | F15: CONT.NÚM >
A16: Tudo sobre a função SOMA
A17: Usar a AutoSoma para somar números
A18: Tudo sobre a função CONT.NÚM
A19: Treinamento grátis sobre o Excel online
A20: Voltar ao início
A21: Próxima etapa
C34: Fruta | D34: Montante
C35: Maçãs | D35: 50
C36: Laranjas | D36: 20
C37: Bananas | D37: 60
C38: Limões | D38: 40
C39: SOMA > | D39: =SUM(D35:D38) -> 170
C44: Item | D44: Valor
C45: Carros | D45: 20
C46: Caminhões | D46: 10
C47: Bicicletas | D47: 10
C48: Skates | D48: 40
D50: Total: | F50: Valor adicional | G50: Novo total
D51: =SUM(D45:D48,100) -> 180 | F51: 100 | G51: =SUM(D45:D48,F51) -> 180

Sheet MÉDIA
A1: Função MÉDIA
A2: Use a função MÉDIA para obter a média dos números em um intervalo de células. | C2: Fruta | D2: Valor | F2: Carne | G2: Valor
A3: Selecione a célula D7 e use a AutoSoma para adicionar uma função MÉDIA. | C3: Maçãs | D3: 50 | F3: Vaca | G3: 50
A4: Agora selecione a célula G7 e insira uma função MÉDIA digitando =MÉDIA(G3:G6). | C4: Laranjas | D4: 20 | F4: Frango | G4: 30
A5: Na célula D15, você pode usar a AutoSoma ou digitar para inserir outra função MÉDIA. | C5: Bananas | D5: 60 | F5: Porco | G5: 10
A6: VEJA ISTO Selecione qualquer intervalo de números e procure uma Média instantânea na barra de status. | C6: Limões | D6: 40 | F6: Peixe | G6: 50
A7: Ativar a planilha anterior | C7: MÉDIA > | F7: MÉDIA >
A8: Avançar para a próxima planilha
A9: CRÉDITO ADICIONAL Tente usar MED ou MODO aqui. MED retorna o valor médio do conjunto de dados, enquanto MODO retorna o valor que aparece com mais frequência. | C9: Item | D9: Valor | F9: Item | G9: Valor
A10: Links para saber mais na Web | C10: Pão | D10: 50 | F10: Pão | G10: 50
A11: Selecione para aprender tudo sobre a função MÉDIA na Web | C11: Roscas | D11: 100 | F11: Roscas | G11: 100
A12: Selecione para aprender tudo sobre a função MED na Web | C12: Biscoitos | D12: 40 | F12: Biscoitos | G12: 40
A13: Selecione para aprender tudo sobre a função MODO na Web | C13: Bolos | D13: 50 | F13: Bolos | G13: 50
A14: Selecione para aprender sobre o treinamento de Excel online e gratuito na Web | C14: Tortas | D14: 20 | F14: Tortas | G14: 20
C15: MÉDIA >

Sheet MÍNIMO e MÁXIMO
A1: Funções MÍNIMO e MÁXIMO
A2: Use a função MÍNIMO para obter o menor número em um intervalo de células. | C2: Fruta | D2: Valor | F2: Carne | G2: Valor
A3: Use a função MÁXIMO para obter o maior número em um intervalo de células. | C3: Maçãs | D3: 50 | F3: Vaca | G3: 50
A4: Selecione a célula D7 e use o Assistente de AutoSoma para adicionar a função MÍNIMO. | C4: Laranjas | D4: 20 | F4: Frango | G4: 30
A5: Agora selecione a célula G7 e insira uma função MÁXIMO digitando =MÁXIMO(G3:G6). | C5: Bananas | D5: 60 | F5: Porco | G5: 10
A6: Na célula D15, você pode usar o Assistente de AutoSoma ou digitar para inserir uma função MÍNIMO ou MÁXIMO. | C6: Limões | D6: 40 | F6: Peixe | G6: 50
A7: Mais informações na Web | C7: MÍNIMO > | F7: MÁXIMO >
A8: Tudo sobre a função MÍNIMO
A9: Tudo sobre a função MÁXIMO | C9: Item | D9: Valor | F9: Item | G9: Valor
A10: Treinamento grátis sobre o Excel online | C10: Pão | D10: 50 | F10: Pão | G10: 50
A11: É BOM SABER Você pode usar MÍNIMO ou MÁXIMO com vários intervalos, ou valores, para mostrar o maior ou o menor desses valores, como em =MÍNIMO(A1:A10;B1:B10) ou =MÁXIMO(A1:A10;B1), em que B1 contém um valor limite, como 10; nesse caso, a fórmula nunca retornaria um resultado diferente de 10. | C11: Roscas | D11: 100 | F11: Roscas | G11: 100
C12: Biscoitos | D12: 40 | F12: Biscoitos | G12: 40
C13: Bolos | D13: 50 | F13: Bolos | G13: 50
C14: Tortas | D14: 20 | F14: Tortas | G14: 20
C15: MÍNIMO ou MÁXIMO > | G15: =MIN(G10:G14,10) -> 10

Sheet Data e hora
A1: Funções de data
A2: O Excel pode fornecer a data atual com base nas configurações regionais do seu computador. Você também pode somar e subtrair datas.
A3: Veja a função HOJE, que fornece a data de hoje. Estas são funções dinâmicas ou voláteis, então, ao abrir sua pasta de trabalho amanhã, você verá a data de amanhã. Digite =HOJE() na célula D6.
A4: Subtrair datas: digite o seu próximo aniversário no formato DD/MM/AA na célula D7 e veja o Excel calcular quantos dias ainda faltam para esse dia usando =D7-D6 e colocar o resultado na célula D8.
A5: Somar datas: digamos que você deseja saber em qual dia determinada conta vence ou quando precisa retornar um livro para a biblioteca. Você pode somar dias a uma data para descobrir. Na célula D10, digite um número aleatório de dias. Na célula D11 somamos =D6+D10 para calcular a data de entrega a partir de hoje. | C5: Funções de data
A6: É BOM SABER O Excel calcula as datas e horas com base no número de dias desde 1º de janeiro de 1900. As horas são calculadas em partes fracionárias de um dia com base em minutos. Portanto, 01/01/2017 12:30 na verdade é armazenado como 42736,5208. Se a Hora ou a Data aparecem como números fracionários, pressione Ctrl+1, selecione e escolha um formato de data ou hora. | C6: Data de hoje: | F6: =IF(D6=TODAY(),"Isso aí!","") -> 
A7: DETALHE IMPORTANTE Se não deseja que o Excel exiba um número negativo porque você ainda não inseriu seu aniversário, use uma função SE como esta: =SE(D7="";"";D7-D6), que significa: "SE D7 for igual a nada, mostre nada, caso contrário, mostre D7 menos D6". | C7: Seu aniversário:
A8: Funções de hora | C8: Dias até o seu aniversário: | D8: =D7-D6 -> 0
A9: O Excel pode fornecer a hora atual com base nas configurações regionais do seu computador. Você também pode somar e subtrair horas. Por exemplo, talvez seja necessário controlar quantas horas um funcionário trabalhou por semana e calcular o pagamento e as horas extras.
A10: Na célula D28, digite =AGORA(), que fornecerá a hora atual e será atualizada sempre que o Excel fizer um cálculo. Se você precisar alterar o formato de hora, acesse Ctrl+1 > Número > Hora e escolha o formato desejado. | C10: Dias no período de carência:
A11: Somar horas entre outras horas: na célula D36 inserimos =((D35-D32)-(D34-D33))*24, que calcula as horas de trabalho de início e fim para uma pessoa e, em seguida, subtrai o tempo que levou para almoçar. O "*24" no final da fórmula converte a parte fracionária do dia que o Excel vê em horas. No entanto, você ainda precisará formatar a célula como Número. Para fazer isso, vá para Página Inicial > Formatar > Células (Ctrl+1) > Número > Número > 2 casas decimais. | C11: Vencimento da conta em: | D11: =D6+D10 -> 00:00:00
A12: Se essa fórmula pudesse falar, diria: "Subtraia Hora de Saída de Hora de Entrada, depois subtraia Início do Almoço de Término do Almoço, em seguida multiplique o resultado por 24 para converter a hora fracionária do Excel em horas", ou =((Hora de Saída-Hora de Entrada)-(Término do Almoço-Início do Almoço))*24.
A13: Anterior
A14: Avançar
A15: Mais informações na Web
A16: Tudo sobre a função HOJE
A17: Tudo sobre a função AGORA
A18: Tudo sobre a função DATA
A19: Treinamento grátis sobre o Excel online
C27: Funções de hora
C28: Hora atual:
C31: Horas diárias trabalhadas
C32: Hora de Entrada: | D32: 08:00:00
C33: Início do Almoço: | D33: 12:00:00
C34: Término do Almoço: | D34: 13:00:00
C35: Hora de Saída: | D35: 17:00:00
C36: Total de horas: | D36: =((D35-D32)-(D34-D33))*24 -> 8
C45: Data e hora estáticas
C46: Data: | D46: 2017-09-27
C47: Hora: | D47: 08:52:00

Sheet Unir texto e números
A1: Unir texto de células diferentes
A2: Há muitas vezes que você quer unir texto no Excel que está em células diferentes. Este exemplo é muito comum, casos em que você tem nomes e sobrenomes e deseja combinar como Nome, Sobrenome ou como Nome completo. Felizmente, o Excel nos permite fazer isso com o símbolo E comercial (&), que você pode inserir com Shift+7. | C2: Nome | D2: Sobrenome | E2: Sobrenome, Nome | F2: Nome completo
A3: Na célula E3, digite =D3&C3 para unir o sobrenome e o nome. | C3: Lara | D3: Cardoso | E3: =D3&", "&C3 -> Cardoso, Lara | F3: =C3&" "&D3 -> Lara Cardoso
A4: CardosoLara não soa muito bem, não é? É necessário adicionar uma vírgula e um espaço. Para fazer isso, usaremos aspas para criar uma nova cadeia de texto. Desta vez, digite =D3&";"&C3. A parte & "," & permite colocar uma vírgula e um espaço com o texto nas células. | C4: Paulo | D4: Araújo
A5: Para criar o nome completo, uniremos o nome e o sobrenome, mas usaremos um espaço sem a vírgula. Na célula F3, digite =C3&" "&D3. | C5: Brenda | D5: Fernandes
A6: Veja mais detalhes abaixo | C6: Mila | D6: Moraes
A7: Avançar | C7: Nicolau | D7: Mendes
A8: Usar texto e números juntos | C8: Pedro | D8: Gonçalves
A9: Agora vamos usar o & para unir texto e números, não apenas para texto e texto Veja as células C28:D29. Vê como a data e as horas estão em células separadas? Você pode uni-las com o símbolo &, como verá nas células C32:C33, mas ainda não parece correto, não é? Infelizmente, o Excel não sabe como você deseja formatar números, então ele os separa de acordo com seu formato, que neste caso é a data serial. Precisamos dizer explicitamente ao Excel como formatar a parte do número na fórmula, para que ele exiba a forma desejada na cadeia de texto resultante. Você pode fazer isso com a função TEXTO e um código de formatação. | C9: Vinícius | D9: Monte
A10: Na célula C36, digite =C28&" "&TEXTO(D28;"DD/MM/AAAA"). DD/MM/AAAA é o código de formatação brasileiro para dia/mês/ano, como 25/09/2017. | C10: Maria Eduarda | D10: Schmidt
A11: Na célula C37, digite =C29&" "&TEXTO(D29;"H:MM"). H:MM é o código de formatação brasileiro para Horas:Minutos, com as horas no formato de 24 horas, tal como 13:30.
A12: VEJA ISTO Fórmulas, especialmente as grandes, podem às vezes ser difíceis de ler, mas você pode dividi-las com espaços, assim: =C28 & " " & TEXTO(D28;"DD/MM/AAAA")
A13: VALE A PENA EXPLORAR Se você não sabe qual código de formatação usar, use Ctrl+1 > Número para formatar qualquer célula da maneira desejada. Em seguida, selecione a opção Personalizado. Você pode copiar o código de formatação que é exibido para sua fórmula.
A14: Mais informações na Web
A15: Tudo sobre a função TEXTO
A16: Combinar texto e números
A17: Treinamento grátis sobre o Excel online
C27: Usar texto e números
C28: Data de hoje: | D28: =TODAY() -> 2021-10-19
C29: Hora atual: | D29: =NOW() -> 44488.45518
C31: Unir texto e números
C32: =C28&" "&D28 -> Data de hoje: 44488
C33: =C29&" "&D29 -> Hora atual: 44488.4551756944
C35: Formatar texto e números
C36: =C28 &" "& TEXT(D28,"DD/MM/AAAA") -> Data de hoje: 19/10/Tuesday
C37: =C29&" "&TEXT(D29,"H:MM") -> Hora atual: 10:55

Sheet Instruções SE
A1: Instruções SE
A2: Instruções SE possibilitam que você faça comparações lógicas entre condições. Uma instrução SE geralmente diz o seguinte: se uma condição é verdadeira, faça tal coisa; caso contrário, faça outra coisa. As fórmulas podem retornar texto, valores ou ainda mais cálculos.
A3: Na célula D9, insira =SE(C9="Maçã";VERDADEIRO;FALSO). A resposta correta é VERDADEIRO.
A4: Copie o conteúdo de D9 para D10. A resposta aqui deve ser FALSO, já que Laranja não é Maçã.
A5: Tente outro exemplo; veja a fórmula na célula D12. Você começou com =SE(C12<100;"Menor que 100";"Maior ou igual a 100"). O que acontece se você inserir um número maior do que 100 na célula C12?
A6: DETALHE IMPORTANTE VERDADEIRO e FALSO são diferentes de outras palavras em fórmulas do Excel, porque não precisam estar entre aspas, e o Excel as coloca automaticamente em maiúsculas. Os números também não precisam estar entre aspas. Texto normal, como Sim ou Não, precisam estar entre aspas, assim: =SE(C9="Maçã","Sim","Não")
A7: Veja mais detalhes abaixo
A8: Avançar | C8: Instruções SE
A9: Instrução SE com outra função | C9: Maçã
A10: Instruções SE também podem forçar a realização de cálculos adicionais se uma determinada condição for atendida. Aqui, vamos avaliar uma célula para ver se o Imposto sobre vendas deve ser cobrado e calcular se a condição é verdadeira. | C10: Laranja
A11: Na célula F33, digitamos =SE(E33="Sim";F31*ImpostoSobreVendas;0), onde definimos o Imposto sobre vendas como um Intervalo nomeado com um valor de 0,0825. Nossa fórmula diz que se a célula E33 é igual a Sim, então multiplique a célula F31 por Imposto sobre vendas, caso contrário, retorne 0. Tente alterar Sim para Não na célula E33 para ver o cálculo mudar.
A12: Em seguida, adicionamos uma instrução SE para calcular o envio, se ele for obrigatório. Na célula F35 você verá =SE(E35="Sim";SOMA(D28:D29)*1,25;0). A fórmula significa que: se a célula E35 é Sim, faça a soma da coluna Quantidade na tabela acima e multiplique o resultado por 1,25; caso contrário, retorne 0. | C12: 50 | D12: =IF(C12<100,"Menor que 100","Maior ou igual a 100") -> Menor que 100
A13: Em seguida, altere 1,25 na fórmula da célula F35 para "Remessa". Enquanto você digita, a correção automática do Excel deve encontrar a palavra para você. Quando isso acontecer, pressione Tab para inseri-la. Esse é um Intervalo nomeado e podemos inseri-lo a partir de Fórmulas > Definir Nome. Agora, se você precisar alterar o custo de envio das mercadorias, você só precisa fazer isso em um lugar e pode usar o nome Remessa em qualquer lugar na pasta de trabalho.
A14: É BOM SABER Ao criar uma fórmula, o Excel coloca automaticamente bordas coloridas ao redor de quaisquer intervalos presentes na fórmula, e os intervalos correspondentes na fórmula ficarão na mesma cor. Você pode ver isto se selecionar a célula F33 e pressionar F2 para editar a fórmula.
A15: DICA ESPECIALIZADA Intervalos nomeados possibilitam definir os termos ou valores em um único local e reutilizá-los em toda a pasta de trabalho. Você pode ver todos os intervalos nomeados nesta pasta de trabalho acessando Fórmulas > Gerenciador de Nomes. Clique aqui para saber mais
A16: Anterior
A17: Avançar
A18: Mais informações na Web
A19: Tudo sobre a função SE
A20: Tudo sobre a função SES
A21: Instruções SE avançadas
A22: Treinamento grátis sobre o Excel online
C27: Item | D27: Quantidade | E27: Custo | F27: Total
C28: Widget | D28: 2 | E28: R$ 9.76 | F28: ='Instruções SE'!$E$28:$E$29*'Instruções SE'!$D$28:$D$29 -> R$ 19.52
C29: Geringonça | D29: 3 | E29: R$ 3.42 | F29: ='Instruções SE'!$E$28:$E$29*'Instruções SE'!$D$28:$D$29 -> R$ 10.26
D31: Subtotal | E31: =SUM('Instruções SE'!$E$28:$E$29) -> R$ 13.18 | F31: =SUM('Instruções SE'!F28:F29) -> R$ 29.78
D33: Imposto sobre vendas? | E33: Sim | F33: =IF(E33="Sim",F31*ImpostoSobreVendas,0) -> R$ 2.46
D35: Remessa? | E35: Sim | F35: =IF(E35="Sim",SUM(D28:D29)*1.25,0) -> R$ 6.25
D37: Total | F37: =SUM(F33,F31,F35) -> R$ 38.48

Sheet PROCV
A1: PROCV
A2: PROCV é uma das funções mais utilizadas no Excel (e uma de nossas favoritas também!). PROCV possibilita pesquisar um valor em uma coluna à esquerda e, em seguida, retorna informações em outra coluna à direita se encontrar uma correspondência. PROCV diz:
A3: =PROCV(A1;B:C;2;FALSO)
A4: O que você gostaria de procurar?
A5: Se encontrar, a quantas colunas à direita está o valor a obter?
A6: Onde você gostaria de procurar?
A7: Você deseja uma correspondência exata ou aproximada?
A8: Na célula D22, digite =PROCV(C22;C17:D20;2;FALSO). A resposta correta para Maçãs é 50. PROCV procurou por Maçãs, encontrou e foi para a coluna à direita e retornou o valor.
A9: Experimente agora na seção Carne, na célula G22. Você deve ficar com a fórmula =PROCV(F22;F17:G20;2;FALSO).
A10: EXPERIMENTO Tente selecionar diferentes itens nas listas suspensas. Você verá as células de resultado mudarem instantaneamente com novos valores.
A11: Veja mais detalhes abaixo
A12: Avançar
A13: PROCV e #N/D
A14: Invariavelmente, você se deparará com uma situação em que PROCV não consegue encontrar o solicitado e retorna um erro (#N/D). Às vezes, é porque o valor de pesquisa simplesmente não existe ou porque a célula de referência ainda não tem um valor.
A15: Se você souber que o valor de pesquisa existe, mas deseja ocultar o erro se a célula de pesquisa estiver vazia, pode usar uma instrução SE. Nesse caso, vamos colocar nossa fórmula PROCV existente desta forma na célula D43: =SE(C43="";"";PROCV(C43;C37:D41;2;FALSO)) Isso informa que se a célula C43 é igual a nada (""), retorne nada, caso contrário, retorne os resultados de PROCV. Observe o segundo parêntese de fechamento no final da fórmula. Isso fecha a instrução SE.
A16: Se não tiver certeza de que o valor de pesquisa existe, mas ainda assim deseja suprimir o erro #N/D, é possível usar uma função de tratamento de erros chamada SEERRO na célula G43: =SEERRO(PROCV(F43;F37:G41;2;FALSO);""). SEERRO informa que se a função PROCV retorna um resultado válido, exiba este resultado, caso contrário, não exiba nada (""). Aqui exibimos nada (""), mas você também pode usar números (0,1, 2, etc.), ou um texto, como "A fórmula não está correta". | C16: Fruta | D16: Valor | F16: Carne | G16: Valor
A17: DETALHE IMPORTANTE SEERRO é conhecida como uma função de tratamento de erros, ou seja, ela suprime todos os erros que sua fórmula pode gerar. Isso pode causar problemas se o Excel oferecer uma notificação de que sua fórmula tem um erro legítimo precisa ser corrigido. Uma prática comum é não adicionar funções de tratamento de erros em suas fórmulas até ter certeza absoluta de que elas funcionam corretamente. | C17: Maçãs | D17: 50 | F17: Vaca | G17: 50
A18: Anterior | C18: Laranjas | D18: 20 | F18: Frango | G18: 30
A19: Avançar | C19: Bananas | D19: 60 | F19: Porco | G19: 10
A20: Mais informações na Web | C20: Limões | D20: 40 | F20: Peixe | G20: 50
A21: Tudo sobre a função PROCV
A22: Tudo sobre as funções ÍNDICE/CORRESP | C22: Maçãs | F22: Porco
A23: Tudo sobre a função SEERRO
A24: Usar as Tabelas Dinâmicas para analisar dados de planilha
A25: Treinamento grátis sobre o Excel online
C35: Se a função SOMA na célula D42 pudesse falar, diria isso: Some os valores nas células D38, D39, D40 e D41.
C36: Item | D36: Valor | F36: Item | G36: Valor
C37: Pão | D37: 50 | F37: Pão | G37: 50
C38: Roscas | D38: 100 | F38: Roscas | G38: 100
C39: Biscoitos | D39: 40 | F39: Biscoitos | G39: 40
C40: Bolos | D40: 50 | F40: Bolos | G40: 50
C41: Tortas | D41: 20 | F41: Tortas | G41: 20
D43: =VLOOKUP(C43,C37:D41,2,FALSE) ->  | F43: Massas | G43: =IFERROR(VLOOKUP(F43,F37:G41,2,FALSE),"") -> 

Sheet Funções condicionais
A1: Funções condicionais: SOMASE
A2: Funções condicionais possibilitam calcular a soma, a média, fazer a contagem ou obter o mínimo ou o máximo de um intervalo com base em uma determinada condição ou critérios especificados por você. Tais como: de todas as frutas na lista, quantas são maçãs? Ou, quantas laranjas são do tipo laranja da Bahia? | C2: Fruta | D2: Valor | F2: Fruta | G2: Tipo | H2: Valor | Z2: Fruta | AB2: Maçãs | AD2: Laranjas | AF2: Bananas | AH2: Limões
A3: SOMASE permite somar em um intervalo com base em critérios específicos usados em outro intervalo, como quantas maçãs você tem. Selecione a célula D17 e digite =SOMASE(C3:C14;C17;D3:D14). A função SOMASE é estruturada assim: | C3: Maçãs | D3: 50 | F3: Maçãs | G3: Fuji | H3: 50 | Z3: Maçãs | AB3: Fuji | AD3: da Bahia | AF3: D’água | AH3: Cravo
A4: =SOMASE(C3:C14;C17;D3:D14) | C4: Laranjas | D4: 20 | F4: Laranjas | G4: da Bahia | H4: 20 | Z4: Laranjas | AB4: Gala | AD4: Seleta | AF4: Ouro | AH4: Siciliano
A5: Qual intervalo você deseja examinar? | C5: Bananas | D5: 60 | F5: Bananas | G5: D’água | H5: 60 | Z5: Bananas
A6: Que valor (texto ou número) você deseja procurar? | C6: Limões | D6: 40 | F6: Limões | G6: Cravo | H6: 40 | Z6: Limões
A7: Para cada correspondência encontrada, a qual intervalo você deseja somar? | C7: Maçãs | D7: 50 | F7: Maçãs | G7: Gala | H7: 50
A8: SOMASES é o mesmo que SOMASE, mas permite que você use vários critérios. Portanto, neste exemplo você pode procurar Frutas e Tipo, ao invés de apenas por Fruta. Selecione a célula H17 e digite =SOMASES(H3:H14;F3:F14;F17;G3:G14;G17). A função SOMASES é estruturada assim: | C8: Laranjas | D8: 20 | F8: Laranjas | G8: Seleta | H8: 20
A9: =SOMASES(H3:H14;F3:F14;F17;G3:G14;G17) | C9: Bananas | D9: 60 | F9: Bananas | G9: Ouro | H9: 60
A10: Qual intervalo você deseja somar? | C10: Limões | D10: 40 | F10: Limões | G10: Siciliano | H10: 40
A11: Este é o primeiro intervalo a ser examinado por correspondências | C11: Maçãs | D11: 50 | F11: Maçãs | G11: Gala | H11: 50
A12: Estes são os critérios para a primeira correspondência | C12: Laranjas | D12: 20 | F12: Laranjas | G12: Seleta | H12: 20
A13: Este é o segundo intervalo a ser examinado por correspondências | C13: Bananas | D13: 60 | F13: Bananas | G13: D’água | H13: 60
A14: Estes são os critérios para a segunda correspondência | C14: Limões | D14: 40 | F14: Limões | G14: Siciliano | H14: 40
A15: DICA ESPECIALIZADA Cada uma das células de Frutas e Tipo tem uma lista suspensa, em que é possível selecionar diferentes frutas. Experimente e observe as fórmulas atualizarem automaticamente.
A16: Veja mais detalhes abaixo | C16: Fruta | D16: SOMASE | F16: Fruta | G16: Tipo | H16: SOMASES
A17: Próxima etapa | C17: Maçãs | F17: Laranjas | G17: da Bahia
A18: Funções condicionais: CONT.SE
A19: CONT.SE e CONT.SES possibilitam contar valores em um intervalo com base em critérios que você especifica. Elas são um pouco diferentes de outras funções SE e SES, já que possuem apenas um intervalo de critérios e critérios. Elas não avaliam um intervalo e procuram em outro para resumir.
A20: Selecione a célula D64 e digite =CONT.SE(C50:C61;C64). A função CONT.SE é estruturada assim:
A21: =CONT.SE(C50:C61;C64)
A22: Qual intervalo você deseja examinar?
A23: Que valor (texto ou número) você deseja procurar?
A24: CONT.SES é o mesmo que CONT.SE, mas permite que você use vários critérios. Portanto, neste exemplo você pode procurar Frutas e Tipo, ao invés de apenas por Fruta. Selecione a célula H64 e digite =CONT.SES(F50:F61;F64;G50:G61;G64). A função CONT.SES é estruturada assim:
A25: =CONT.SES(F50:F61;F64;G50:G61;G64)
A26: Este é o primeiro intervalo a contar
A27: Estes são os critérios para a primeira correspondência
A28: Este é o segundo intervalo a contar
A29: Estes são os critérios para a segunda correspondência
A30: Veja mais detalhes abaixo
A31: Avançar
A32: Mais funções condicionais
A33: Você já viu as funções SOMASE, SOMASES, CONT.SE e CONT. SES. Agora você pode experimentar outras funções, como MÉDIASE/S, MÁXIMOSES e MÍNIMOSES. Elas são estruturados da mesma forma, então após criar uma fórmula, apenas substitua o nome da função pela opção desejada. Escrevemos todas as funções que serão necessárias para a célula E106, para que você possa copiar e colar, ou tente inseri-las por conta própria para praticar. SOMASE =SOMASE(C92:C103;C106;E92:E103) SOMASES =SOMASES(E92:E103;C92:C103;C106;D92:D103;D106) MÉDIASE =MÉDIASE(C92:C103;C106;E92:E103) MÉDIASES =MÉDIASES(E92:E103;C92:C103;C106;D92:D103;D106) CONT.SE =CONT.SE(C92:C103;C106) CONT.SES =CONT.SES(C92:C103;C106;D92:D103;D106) MÁXIMOSES =MÁXIMOSES(E92:E103;C92:C103;C106;D92:D103;D106) MÍNIMOSES =MÍNIMOSES(E92:E103;C92:C103;C106;D92:D103;D106)
A34: Veja mais detalhes abaixo
A35: Avançar
A36: SOMASE com um argumento de valor
A37: Este é um exemplo de como a função SOMASE usa "maior que" (>) para encontrar todos os valores maiores que um determinado valor:
A38: =SUMIF(D118:D122,">=50") -> 200
A39: Some alguns valores com base neste critério:
A40: Examine estas células...
A41: e se o valor for maior que 50, some-o.
A42: OBSERVAÇÃO: se você achar que está usando muitas fórmulas condicionais, talvez considere uma Tabela Dinâmica como a melhor solução. Consulte este artigo sobre Tabela Dinâmica para saber mais.
A43: Mais informações na Web
A44: Tudo sobre a função SOMASE
A45: Tudo sobre a função SOMASES
A46: Tudo sobre a função CONT.SE
A47: Tudo sobre a função CONT.SES
A48: Tudo sobre a função MÉDIASE
A49: Tudo sobre a função MÉDIASES | C49: Fruta | D49: Valor | F49: Fruta | G49: Tipo | H49: Valor
A50: Tudo sobre a função MÍNIMOSES | C50: Maçãs | D50: 50 | F50: Maçãs | G50: Fuji | H50: 50
A51: Tudo sobre a função MÁXIMOSES | C51: Laranjas | D51: 20 | F51: Laranjas | G51: da Bahia | H51: 20
A52: Criar uma lista suspensa | C52: Bananas | D52: 60 | F52: Bananas | G52: D’água | H52: 60
A53: Treinamento grátis sobre o Excel online | C53: Limões | D53: 40 | F53: Limões | G53: Cravo | H53: 40
A54: Voltar ao início | C54: Maçãs | D54: 50 | F54: Maçãs | G54: Gala | H54: 50
A55: Avançar | C55: Laranjas | D55: 20 | F55: Laranjas | G55: Seleta | H55: 20
C56: Bananas | D56: 60 | F56: Bananas | G56: Ouro | H56: 60
C57: Limões | D57: 40 | F57: Limões | G57: Siciliano | H57: 40
C58: Maçãs | D58: 50 | F58: Maçãs | G58: Gala | H58: 50
C59: Laranjas | D59: 20 | F59: Laranjas | G59: Seleta | H59: 20
C60: Bananas | D60: 60 | F60: Bananas | G60: D’água | H60: 60
C61: Limões | D61: 40 | F61: Limões | G61: Siciliano | H61: 40
C63: Fruta | D63: CONT.SE | F63: Fruta | G63: Tipo | H63: CONT.SES
C64: Maçãs | D64: =COUNTIF(C50:C61,C64) -> 3 | F64: Laranjas | G64: da Bahia | H64: =COUNTIFS(F50:F61,F64,G50:G61,G64) -> 1
C91: Fruta | D91: Tipo | E91: Valor
C92: Maçãs | D92: Fuji | E92: 50
C93: Laranjas | D93: da Bahia | E93: 20
C94: Bananas | D94: D’água | E94: 60
C95: Limões | D95: Cravo | E95: 40
C96: Maçãs | D96: Gala | E96: 50
C97: Laranjas | D97: Seleta | E97: 20
C98: Bananas | D98: Ouro | E98: 60
C99: Limões | D99: Siciliano | E99: 40
C100: Maçãs | D100: Gala | E100: 50
C101: Laranjas | D101: Seleta | E101: 20
C102: Bananas | D102: D’água | E102: 60
C103: Limões | D103: Siciliano | E103: 40
C105: Fruta | D105: Tipo | E105: Experimente
C106: Limões | D106: Siciliano | E106: =AVERAGEIFS(E92:E103,C92:C103,C106,D92:D103,D106) -> 40
C117: Item | D117: Valor
C118: Pão | D118: 50
C119: Roscas | D119: 100
C120: Biscoitos | D120: 40
C121: Bolos | D121: 50
C122: Tortas | D122: 20
D123: =SUMIF(D118:D122,">=50") -> 200

Sheet Assistente de função
A1: Permitir que o Assistente de Função o oriente
A2: Se souber o nome da função desejada, mas não estiver certo sobre como criá-la, você pode usar o Assistente de função para ajudá-lo.
A3: Selecione a célula D10 e acesse Fórmulas > Inserir Função > digite PROCV na caixa Procure por uma função e pressione IR. Quando vir PROCV realçada, clique em OK na parte inferior. Ao selecionar uma função na lista, o Excel exibe sua sintaxe.
A4: Em seguida, insira os argumentos da função em suas respectivas caixas de texto. Enquanto você digita cada um deles, o Excel os avalia e exibe o resultado, com o resultado final na parte inferior. Ao digitar cada seção, os critérios para cada argumento são listados na parte inferior do formulário. Pressione OK quando terminar e o Excel insere a fórmula. | C4: Fruta | D4: Valor
A5: VEJA ISTO Você deve ficar com a fórmula =PROCV(C10;C5:D8;2;FALSO). | C5: Maçãs | D5: 50
A6: É BOM SABER Você pode digitar as referências de célula e intervalo ou selecioná-las com o mouse. | C6: Laranjas | D6: 20
A7: É BOM SABER Enquanto você digita a seção de cada argumento, a descrição do argumento é exibida na parte inferior do formulário, acima do resultado da fórmula. | C7: Bananas | D7: 60
A8: Anterior | C8: Limões | D8: 40
A9: Avançar
A10: Mais informações na Web | C10: Maçãs | D10: =VLOOKUP(C10,C5:D8,2,FALSE) -> 50
A11: Visão geral de fórmulas no Excel
A12: Funções do Excel (por categoria)
A13: Funções do Excel (em ordem alfabética)
A14: Treinamento grátis sobre o Excel online

Sheet Erros de fórmula
A1: Corrigir erros de fórmula
A2: Em algum momento você se deparará com uma fórmula que apresenta um erro, e o Excel exibirá #NOME!. Erros podem ser úteis, porque apontam quando algo não está funcionando corretamente, mas pode ser um desafio corrigir. Felizmente, há várias opções que podem ajudar a descobrir a origem do erro e corrigi-lo.
A3: Verificação de erros: acesse Fórmulas > Verificação de erros. Isso carregará uma caixa de diálogo que informa a causa geral para o erro específico. Na célula D9, o erro #N/D ocorre porque não há nenhum valor que corresponde a "Maçã". Você pode corrigir esse problema usando um valor que existe, suprimir o erro com SEERRO ou ignorá-lo e saber que ele desaparecerá quando você usar um valor que existe. | C3: Fruta | D3: Montante
A4: Se você clicar em Ajuda sobre este Erro, um tópico da Ajuda relacionado especificamente à mensagem de erro será exibido. Se você clicar em Mostrar etapas de cálculo, será carregada uma caixa de diálogo Avaliar fórmula. | C4: Maçãs | D4: 50
A5: Sempre que você clica em Avaliar, o Excel o orienta pela fórmula, uma seção por vez. Ele não vai necessariamente dizer por quê o erro ocorre, mas apontará onde está o erro. A partir daí, veja o tópico da Ajuda para deduzir o que deu errado na fórmula. | C5: Laranjas | D5: 20
A6: EXPERIMENTO O que há de errado aqui? Dica: estamos tentando fazer a SOMA de todos os itens. | C6: Bananas | D6: 60
A7: É BOM SABER Ao clicar em Opções, é possível definir as regras para quando os erros no Excel são exibidos ou ignorados. | C7: Limões | D7: 40
A8: Anterior
A9: Avançar | C9: Maçã | D9: =VLOOKUP(C9,C3:D7,2,FALSE) -> 
A10: Mais informações na Web
A11: Detectar erros em fórmulas
A12: Como evitar fórmulas quebradas
A13: Avalie uma fórmula aninhada uma etapa por vez
A14: Treinamento grátis sobre o Excel online
C30: Fruta | D30: Valor
C31: Maçãs | D31: 50
C32: Laranjas | D32: 20
C33: Bananas | D33: 60
C34: Limões | D34: 40
C36: Total | D36: =sume(D31:D34) -> 

Sheet Saiba mais
A1: Mais dúvidas sobre o Excel?
A2: Pressione Alt+Q e digite o que você deseja saber.
A3: Vá em frente. Há muito mais para aprender com o Excel:
A4: Comunidade: Faça perguntas e conecte-se com outros fãs do Excel.
A5: Quais são as outras novidades? Os assinantes do Office 365 recebem atualizações contínuas e novos recursos.
